Workbook

Sheet Instruktioner
B3: Socialstyrelsens riktvärdesmodell - översikt
B5: I denna fil finns en visualisering som ger översikt över Socialstyrelsens riktvärden för vårdplatser inom somatisk vård (exklusive intensivvård), samt för intensivvård, på kort sikt. Då datakällor, definitioner och tidsperiod kan skilja sig åt kan även inmatat antal vårdplatser skilja sig från det till Socialstyrelsen inrapporterade antalet, även vid jämförelse av samma vårdgivare.
B7: Hur du använder visualiseringen
B8: Riktvärden för regioner
B9: I modellen kan du välja region och se antal disponibla vårdplater samt riktvärdet för antal disponibla vårdplatser på kort sikt i just den regionen. För varje region kan du markera vilka sjukhus som ska inkluderas i analysen genom att välja "Visa" eller "Dölj". Regionens riktvärde justeras då till att bara inkludera valda sjukhus och antal disponibla vårdplatser justeras med lika stor andel. För att "antal disponibla vårdplatser" ska stämma överens med regionens antal disponibla vårdplatser behöver alla sjukhus vara valda - annars är detta värde ett estimat. Väljer du "Sverige" som region så inkluderar riktvärdet samtliga sjukhus, även de du valt att dölja.
B11: Riktvärden för sjukhus
B12: När du har valt region kan du även välja sjukhus. För sjukhus kan du se antalet disponibla vårdplatser samt dess riktvärde. Du kan även själv mata in sjukhusets aktuella disponibla vårdplatser.
B14: Om riktvärdena
B15: Riktvärdena finns framtagna för varje region och varje sjukhus i Sverige och avser ett önskvärt genomsnittligt antal disponibla vårdplatser över året. Indelningen i olika sjukhus baseras på den produktionsdata som rapporteras in i patientregistret (PAR).
B17: Riktvärden för disponibla vårdplatser exklusive intensivvårdsavdelningar
B18: Riktvärdena för vårdplatser utgår från regionernas och sjukhusens nuvarande produktion av sluten vård, exklusive intensivvård och med hänsyn till patienter som väntar på planerad vård och på akutmottagningar. Vård i hemmet inkluderas enbart i riktvärdet och nuvarande antal vårdplatser om det i vald region/på det valda sjukhuset registreras som slutenvård i patientregistret. Vård som utförs inom sluten primärvård, vilket exempelvis inkluderar disponibla vårdplatser tillgängliga på sjukstugor, räknas med i riktvärdet i de fall där enheten rapporterar in det som sluten vård till patientregistret.
B20: Riktvärden för disponibla vårdplatser på intensivvårdsavdelning (IVA)
B21: Har sjukhuset en eller flera intensivvårdsavdelningar visas det totala antalet disponibla IVA-platser samt riktvärdet. Riktvärdena för intensivvård är framtagna med hänsyn till riktlinjer från Svenska intensivvårdsregistret om minst 4 vårdplatser per avdelning. Även IVA-platser kan visualiseras för hela regionen och/eller för ett valt sjukhus. Du kan också själv mata in sjukhusets aktuella disponibla intensivvårdplatser.
B23: Läs mer om vårdplatser och riktvärden
B24: Beräkningen av riktvärden för disponibla vårdplatser utgår från beräkningen av riktvärden på kort sikt. Samtliga rapporter och metodbeskrivningar om riktvärdesberäkningar finns att finna på följande länk:
B25: Länk till Socialstyrelsens sida om vårdplatser

Sheet Visualisera
C2: Översikt av riktvärden för disponibla vårdplatser
D4: Välj region | F4: Välj sjukhus
I5: Somatisk vård exklusive IVA | Q5: IVA
C7: Välj vilka sjukhus som ska visas genom att markera nedan | F7: Sjukhus som inkluderas i analysen | I7: =CONCATENATE("Region: ",IF(RegionCell<>"",RegionCell,"Ingen region vald.")) -> Region: Ingen region vald. | L7: =CONCATENATE("Sjukhus: ",IF(HospitalCell<>"",HospitalCell,"Inget sjukhus valt.")) -> Sjukhus: Inget sjukhus valt. | Q7: =CONCATENATE("Region: ",IF(RegionCell<>"",RegionCell,"Ingen region vald.")) -> Region: Ingen region vald. | T7: =CONCATENATE("Sjukhus: ",IF(HospitalCell<>"",HospitalCell,"Inget sjukhus valt.")) -> Sjukhus: Inget sjukhus valt.
E8: 17 | I8: Antal disponibla vårdplatser1 | J8: =IFERROR(INDEX(Regiondata[Regionernas egna disp vpl], MATCH(RegionCell, Regiondata[Region], 0))*AndelAvRiktvärde, "") ->  | L8: Sjukhusets antal disponibla vårdplatser (frivilligt att fylla i) | Q8: Antal disponibla intensivvårdplatser | R8: =IFERROR(INDEX(Regiondata[Regionernas disponibla IVA-platser], MATCH(RegionCell, Regiondata[Region], 0))*AndelAvRiktvärdeIVA, "") ->  | T8: Sjukhusets antal disponibla intensivvårdplatser (frivilligt att fylla i)
E9: 45 | I9: Riktvärde för antal disponibla vårdplatser på kort sikt2 3 | J9: =_xlfn.IFNA(SUMIFS(HospitalData[[#Data],[#Totals],[Riktvärde kort sikt]],HospitalData[[#Data],[#Totals],[Region]],RegionCell,HospitalData[[#Data],[#Totals],[Visa]],""),"") -> 0 | L9: Sjukhusets inrapporterade antal disponibla vårdplatser | M9: =IFERROR(IF(RegionCell="Sverige",INDEX(HospitalData[Sjukhusets egna disp vpl],MATCH(HospitalCell,HospitalData[Sjukhus],0)),INDEX(HospitalData[Sjukhusets egna disp vpl], MATCH(1, INDEX((HospitalData[Region]=RegionCell)*(HospitalData[Sjukhus]=HospitalCell), 0, 1), 0))),"-") -> - | Q9: Riktvärde för antal disponibla intensivvårdplatser på kort sikt6 | R9: =_xlfn.IFNA(SUMIFS(HospitalData[[#Data],[#Totals],[Riktvärde IVA kort sikt med hänsyn till riktlinjer]],HospitalData[[#Data],[#Totals],[Region]],RegionCell,HospitalData[[#Data],[#Totals],[Visa]],""),"") -> 0 | T9: Sjukhusets inrapporterade antal disponibla intensivvårdplatser | U9: =IFERROR(IF(RegionCell="Sverige",INDEX(HospitalData[Disponibla vårdplatser IVA], MATCH(HospitalCell,HospitalData[Sjukhus],0)),INDEX(HospitalData[Disponibla vårdplatser IVA], MATCH(1, IF(HospitalData[Sjukhus]=HospitalCell, IF(HospitalData[Region]=RegionCell, 1)), 0))),"-") -> -
E10: 46 | I10: Gap (antal vårdplatser)4 | J10: =IFERROR(_xlfn.IFNA(J9-J8,""),"") ->  | L10: Sjukhusets riktvärde för disponibla vårdplatser på kort sikt5 | M10: =IFERROR(IF(RegionCell="Sverige",INDEX(HospitalData[Riktvärde kort sikt],MATCH(HospitalCell,HospitalData[Sjukhus],0)),INDEX(HospitalData[Riktvärde kort sikt], MATCH(1, INDEX((HospitalData[Region]=RegionCell)*(HospitalData[Sjukhus]=HospitalCell), 0, 1), 0))),"-") -> - | Q10: Gap (antal vårdplatser)4 | R10: =IF(ISBLANK(R8),"",IFERROR(_xlfn.IFNA(R9-R8,""),"")) ->  | T10: Sjukhusets riktvärde för disponibla intensivvårdplatser på kort sikt6 | U10: =IFERROR(IF(RegionCell="Sverige",INDEX(HospitalData[Riktvärde IVA kort sikt med hänsyn till riktlinjer], MATCH(HospitalCell,HospitalData[Sjukhus],0)),INDEX(HospitalData[Riktvärde IVA kort sikt med hänsyn till riktlinjer], MATCH(1, IF((HospitalData[Sjukhus]=HospitalCell)*(HospitalData[Region]=RegionCell), 1), 0))),"-") -> -
E11: 121 | I11: Gap (%)4 | J11: =IFERROR(_xlfn.IFNA(-(J9-J8)/J8,""),"") ->  | L11: Gap (antal vårdplatser)4 | M11: =IF(M9=0,IF(ISBLANK(M8),"",IFERROR(M10-M8,"")),IFERROR(M10-M9,"")) ->  | Q11: Gap (%)4 | R11: =IFERROR(_xlfn.IFNA(-(R9-R8)/R8,""),"") ->  | T11: Gap (antal vårdplatser)4 | U11: =IF(U9=0,IF(ISBLANK(U8),"",IFERROR(U10-U8,"")),IFERROR(U10-U9,"")) -> 
L12: Gap (%)4 | M12: =IF(M9=0,IF(ISBLANK(M8),"",IFERROR(-(M10-M8)/M8,"")),IFERROR(-(M10-M9)/M9,"")) ->  | T12: Gap (%)4 | U12: =IF(U9=0,IF(ISBLANK(U8),"",IFERROR(-(U10-U8)/U8,"")),IFERROR(-(U10-U9)/U9,"")) -> 
L13: Andel av regionens riktvärde för disponibla vårdplatser | M13: =IFERROR(M10/J9,"") ->  | T13: Andel av regionens riktvärde för disponibla intensivvårdplatser | U13: =IFERROR(U10/R9,"") -> 
L15: Regionens resterande vårdplatser i riktvärdet på kort sikt | M15: =J9-M10 ->  | T15: Regionens resterande intensivvårdplatser i riktvärdet på kort sikt | U15: =R9-U10 -> 
I54: 1Antalet disponibla vårdplatser per region justeras automatiskt med samma andel som riktvärdet när ett sjukhus avmarkeras i översikten. Om du valt att inte inkludera regionens samtliga sjukhus så visas en skattning av de valda sjukhusens antal disponibla vårdplatser. | L54: 3Varav platser för att minska antal patienter som väntar över vårdgarantins gräns | M54: =_xlfn.IFNA(INDEX(Regiondata[Varav platser baserat på patienter som väntar på vård], MATCH(RegionCell,Regiondata[Region],0)),"") ->  | Q54: 6Riktvärdena tar hänsyn till riktlinjerna om minst 4 platser per avdelning.
L57: 4Gapet avser skillnaden mellan riktvärdet och antalet disponibla vårdplatser. Det inrapporterade antalet disponibla vårdplatser används i första hand och det egeninmatade värdet i andra hand.
I58: 2Riktvärdena utgår från regionernas och sjukhusens nuvarande produktion av slutenvård, exklusive intensivvård och med hänsyn till patienter som väntar på planerad vård och på akutmottagningar. Vård i hemmet inkluderas därför enbart i riktvärdet och nuvarande antal vårdplatser om det i vald region/på det valda sjukhuset registreras som slutenvård i patientregistret. I de fall andra vårdformer avlastar den slutna vården kommer detta att reflekteras i ett lägre behov av disponibla vårdplatser - och därmed ett lägre riktvärde för disponibla vårdplatser på sikt.
L60: 5Varav sjukhusets uppskattade vårdplatsbehov för att minska antal patienter som väntar över vårdgarantins gräns:
M61: =IFERROR(IF(RegionCell="Sverige",INDEX(HospitalData[Varav platser baserat på patienter som väntar på vård], MATCH(HospitalCell,HospitalData[Sjukhus],0)),INDEX(HospitalData[Varav platser baserat på patienter som väntar på vård], MATCH(1, INDEX((HospitalData[Region]=RegionCell)*(HospitalData[Sjukhus]=HospitalCell), 0), 0))),"-") -> -
L63: Grund för väntetidsdata:
L64: =_xlfn.IFNA(INDEX(Regiondata[Grund för väntetidsdata], MATCH(RegionCell,Regiondata[Region],0)),"") -> 
F83: Länssjukhuset i Kalmar
F84: Länssjukhuset i Sundsvall - Härnösand
F85: Länssjukhuset Ryhov
F86: Malå Sjukstuga
F87: Mandometerkliniken
F88: Mora lasarett
F89: Mälargården
F90: Mälarsjukhuset
F91: Nacka kommun Hallens äldrecentrum
F92: Nacka Närsjukhus
F93: Norra Älvsborgs Länssjukhus och Uddevalla sjukhus
F94: Norrlands universitetssjukhus
F95: Norrtälje sjukhus
F96: Nya Karolinska Solna
F97: Nyköpings lasarett
F98: Nynäshamns sjukhus
F99: Ortho o Spine Center
F100: Ortopediska Huset
F101: Oskarshamns sjukhus
F102: Pajala sjukhem
F103: Perituskliniken AB
F104: Piteå Älvdals sjukhus
F105: Rehab Station Stockholm
F106: Rehabcenter Mösseberg
F107: Ryggkirurgiskt Centrum AB
F108: S:t Eriks sjukhus
F109: Sabbatsbergs sjukhem
F110: Sahlgrenska universitetssjukhuset
F111: Simrishamns sjukhus
F112: Sjukhem NÖSO
F113: Sjukhusen i Väster
F114: Sjukhuset i Arvika
F115: Sjukhuset i Hässleholm
F116: Sjukhuset i Säffle
F117: Sjukhuset i Torsby
F118: Skaraborgs sjukhus
F119: Skellefteå lasarett
F120: Skånes universitetssjukhus Lund
F121: Skånes universitetssjukhus Malmö
F122: Sollefteå sjukhus
F123: Sollentuna sjukhus
F124: Sophiahemmet
F125: Sorsele Sjukstuga
F126: Specialist Center Skåne AB
F127: Specialistcenter Uppsala AB, S:t Johanniskliniken
F128: Specialistsjukvården i Falkenberg
F129: Stockholms sjukhem
F130: Stora Sköndals sjukhus
F131: Storumans Sjukstuga
F132: Sunderby sjukhus
F133: Södermalms läkarhus
F134: Södersjukhuset
F135: Södertälje sjukhus
F136: Södertälje Ögonklinik
F137: Södra Älvsborgs sjukhus
F138: Tärnaby Sjukstuga
F139: Universitetssjukhuset i Linköping
F140: Universitetssjukhuset Örebro
F141: Vilhelmina Sjukstuga
F142: Visby lasarett
F143: Vrinnevisjukhuset i Norrköping
F144: Vårdgivare Bromma sjukhus
F145: Värnamo sjukhus
F146: Västerviks sjukhus
F147: Västmanlands sjukhus Köping
F148: Västmanlands sjukhus Sala
F149: Västmanlands sjukhus Västerås
F150: Åsele Sjukstuga
F151: Ängelholms sjukhus
F152: Örnsköldsviks sjukhus
F153: Östersunds sjukhus
F154: Överkalix sjukhem
F155: Övertorneå sjukhem

Sheet Data (hidden)
B1: I denna flik klistras data för sjukhusen in - detta gäller kolumn B till I. Kolumn D, E, F, G och J avser värden för somatisk vård exklusive IVA och kolumn H och I avser värden för IVA. Riktvärdena som används i fliken Visualisera hämtas från kolumn I och J. Kolumn K indikerar om sjukhuset ska inkluderas i analysen eller ej. För att visa sjukhuset lämnas rutan tom och för att dölja det ges värdet "Dölj". Då färgas raden orange. Du kan ändra vilka sjukhus som ska visas genom att markera kryssrutorna i fliken Visualisera.
H2: Orangea rader är sjukhus som du valt att dölja och därmed inte inkluderas i analysen. För att nollställa ditt val och inkludera samtliga sjukhus, klicka på knappen "Återställ samtliga sjukhus" i fliken Visualisera. | J2: Beiga kolumner innehåller formler och BÖR INTE ÄNDRAS när du uppdaterar tabellen.
B5: Sjukhus | C5: Region | D5: Vårdplatsbehov planerad vård | E5: Vårdplatsbehov oplanerad vård | F5: Sjukhusets egna disp vpl | G5: Varav platser baserat på patienter som väntar på vård | H5: Disponibla vårdplatser IVA | I5: Riktvärde IVA kort sikt med hänsyn till riktlinjer | J5: Riktvärde kort sikt | K5: Visa
B6: Akademiska sjukhuset | C6: Uppsala | D6: 244.0089356 | E6: 417.8623272 | F6: 513 | G6: 21.20154414 | H6: 19.94642857 | I6: 34.99491383 | J6: =HospitalData[[#This Row],[Vårdplatsbehov planerad vård]]+HospitalData[[#This Row],[Vårdplatsbehov oplanerad vård]] -> 661.8712628
B7: Aleris Specialistvård Ängelholm | C7: Skåne | D7: 2.737992522 | E7: 0.08036001286 | F7: 0 | G7: 0 | H7: 0 | I7: 0 | J7: =HospitalData[[#This Row],[Vårdplatsbehov planerad vård]]+HospitalData[[#This Row],[Vårdplatsbehov oplanerad vård]] -> 2.818352535
B8: Art Clinic Göteborg | C8: Västra Götaland | D8: 3.74460742 | E8: 0 | F8: 0 | G8: 0 | H8: 0 | I8: 0 | J8: =HospitalData[[#This Row],[Vårdplatsbehov planerad vård]]+HospitalData[[#This Row],[Vårdplatsbehov oplanerad vård]] -> 3.74460742
B9: Art Clinic Jönköping | C9: Jönköping | D9: 2.306586137 | E9: 0 | F9: 0 | G9: 0 | H9: 0 | I9: 0 | J9: =HospitalData[[#This Row],[Vårdplatsbehov planerad vård]]+HospitalData[[#This Row],[Vårdplatsbehov oplanerad vård]] -> 2.306586137
B10: Art Clinic Stockholm | C10: Stockholm | D10: 0.03479430051 | E10: 0 | G10: 0.0002817897263 | H10: 0 | I10: 0 | J10: =HospitalData[[#This Row],[Vårdplatsbehov planerad vård]]+HospitalData[[#This Row],[Vårdplatsbehov oplanerad vård]] -> 0.03479430051
B11: Art Clinic Uppsala | C11: Uppsala | D11: 0.3911417889 | E11: 0.003214400514 | F11: 0 | G11: 0 | H11: 0 | I11: 0 | J11: =HospitalData[[#This Row],[Vårdplatsbehov planerad vård]]+HospitalData[[#This Row],[Vårdplatsbehov oplanerad vård]] -> 0.3943561894
B12: Arvidsjaurs sjukhem | C12: Norrbotten | D12: 0.1150417026 | E12: 4.12407586 | F12: 5 | G12: 0 | H12: 0 | I12: 0 | J12: =HospitalData[[#This Row],[Vårdplatsbehov planerad vård]]+HospitalData[[#This Row],[Vårdplatsbehov oplanerad vård]] -> 4.239117562
B13: Avesta lasarett | C13: Dalarna | D13: 9.603106126 | E13: 29.05175185 | F13: 40 | G13: 0 | H13: 0 | I13: 0 | J13: =HospitalData[[#This Row],[Vårdplatsbehov planerad vård]]+HospitalData[[#This Row],[Vårdplatsbehov oplanerad vård]] -> 38.65485797
B14: Axlagården Umeå hospice | C14: Västerbotten | D14: 6.681046879 | E14: 8.865316618 | F14: 0 | G14: 0 | H14: 0 | I14: 0 | J14: =HospitalData[[#This Row],[Vårdplatsbehov planerad vård]]+HospitalData[[#This Row],[Vårdplatsbehov oplanerad vård]] -> 15.5463635
B15: Blackebergs sjukhus | C15: Stockholm | D15: 71.51388565 | E15: 16.2487946 | G15: 0.5791718174 | H15: 0 | I15: 0 | J15: =HospitalData[[#This Row],[Vårdplatsbehov planerad vård]]+HospitalData[[#This Row],[Vårdplatsbehov oplanerad vård]] -> 87.76268025
B16: Blekingesjukhuset | C16: Blekinge | D16: 45.24763685 | E16: 248.3759241 | F16: 261.7 | G16: -2.919202378 | H16: 7.952380952 | I16: 8.709415721 | J16: =HospitalData[[#This Row],[Vårdplatsbehov planerad vård]]+HospitalData[[#This Row],[Vårdplatsbehov oplanerad vård]] -> 293.623561
B17: Bollnäs närsjukhus | C17: Gävleborg | D17: 4.846022322 | E17: 36.66779171 | F17: 42.2 | G17: -0.02872602447 | H17: 2.75 | I17: 4 | J17: =HospitalData[[#This Row],[Vårdplatsbehov planerad vård]]+HospitalData[[#This Row],[Vårdplatsbehov oplanerad vård]] -> 41.51381403
B18: Capio Arytmicenter Stockholm AB | C18: Stockholm | D18: 0.06378955094 | E18: 0 | G18: 0.0005166144981 | H18: 0 | I18: 0 | J18: =HospitalData[[#This Row],[Vårdplatsbehov planerad vård]]+HospitalData[[#This Row],[Vårdplatsbehov oplanerad vård]] -> 0.06378955094
B19: Capio Gastro Center Göteborg AB, Mottagning | C19: Västra Götaland | D19: 0.5838366408 | E19: 0 | F19: 0 | G19: 0 | H19: 0 | I19: 0 | J19: =HospitalData[[#This Row],[Vårdplatsbehov planerad vård]]+HospitalData[[#This Row],[Vårdplatsbehov oplanerad vård]] -> 0.5838366408
B20: Capio Geriatrik Vårberg | C20: Stockholm | D20: 30.41891722 | E20: 32.34008357 | G20: 0.2463546682 | H20: 0 | I20: 0 | J20: =HospitalData[[#This Row],[Vårdplatsbehov planerad vård]]+HospitalData[[#This Row],[Vårdplatsbehov oplanerad vård]] -> 62.7590008
B21: Capio Kirurgkliniken Stockholm | C21: Stockholm | D21: 0.745177936 | E21: 0 | G21: 0.006034996637 | H21: 0 | I21: 0 | J21: =HospitalData[[#This Row],[Vårdplatsbehov planerad vård]]+HospitalData[[#This Row],[Vårdplatsbehov oplanerad vård]] -> 0.745177936
B22: Capio Movement Halmstad | C22: Halland | D22: 5.579522577 | E22: 0 | F22: 0 | G22: 0 | H22: 0 | I22: 0 | J22: =HospitalData[[#This Row],[Vårdplatsbehov planerad vård]]+HospitalData[[#This Row],[Vårdplatsbehov oplanerad vård]] -> 5.579522577
B23: Capio Ortho Center Göteborg AB | C23: Västra Götaland | D23: 2.211676733 | E23: 0 | F23: 0 | G23: 0 | H23: 0 | I23: 0 | J23: =HospitalData[[#This Row],[Vårdplatsbehov planerad vård]]+HospitalData[[#This Row],[Vårdplatsbehov oplanerad vård]] -> 2.211676733
B24: Capio Ortho Center Skåne AB | C24: Skåne | D24: 3.669830313 | E24: 0 | G24: 0 | H24: 0 | I24: 0 | J24: =HospitalData[[#This Row],[Vårdplatsbehov planerad vård]]+HospitalData[[#This Row],[Vårdplatsbehov oplanerad vård]] -> 3.669830313
B25: Capio Ortho Center Stockholm | C25: Stockholm | D25: 0.745177936 | E25: 0 | G25: 0.006034996637 | H25: 0 | I25: 0 | J25: =HospitalData[[#This Row],[Vårdplatsbehov planerad vård]]+HospitalData[[#This Row],[Vårdplatsbehov oplanerad vård]] -> 0.745177936
B26: Capio S:t Görans sjukhus | C26: Stockholm | D26: 44.65147128 | E26: 404.4919319 | G26: 0.3647298357 | H26: 7.5 | I26: 7.11458596 | J26: =HospitalData[[#This Row],[Vårdplatsbehov planerad vård]]+HospitalData[[#This Row],[Vårdplatsbehov oplanerad vård]] -> 449.1434031
B27: Capio Specialistvård Motala | C27: Östergötland | D27: 5.444348576 | E27: 2.378656381 | F27: 25 | G27: 0 | H27: 0 | I27: 0 | J27: =HospitalData[[#This Row],[Vårdplatsbehov planerad vård]]+HospitalData[[#This Row],[Vårdplatsbehov oplanerad vård]] -> 7.823004957
B28: Capio Spine Center Göteborg | C28: Västra Götaland | D28: 3.310324993 | E28: 0 | F28: 0 | G28: 0 | H28: 0 | I28: 0 | J28: =HospitalData[[#This Row],[Vårdplatsbehov planerad vård]]+HospitalData[[#This Row],[Vårdplatsbehov oplanerad vård]] -> 3.310324993
B29: Capio Spine Center Skåne | C29: Skåne | D29: 0.1035375324 | E29: 0 | F29: 0 | G29: 0 | H29: 0 | I29: 0 | J29: =HospitalData[[#This Row],[Vårdplatsbehov planerad vård]]+HospitalData[[#This Row],[Vårdplatsbehov oplanerad vård]] -> 0.1035375324
B30: Capio Spine Center Stockholm | C30: Stockholm | D30: 2.081858981 | E30: 0 | G30: 0.01686041862 | H30: 0 | I30: 0 | J30: =HospitalData[[#This Row],[Vårdplatsbehov planerad vård]]+HospitalData[[#This Row],[Vårdplatsbehov oplanerad vård]] -> 2.081858981
B31: Capio Urokirurgiskt centrum CFTK Stockholm | C31: Stockholm | D31: 0.02899525043 | E31: 0 | G31: 0.0002348247719 | H31: 0 | I31: 0 | J31: =HospitalData[[#This Row],[Vårdplatsbehov planerad vård]]+HospitalData[[#This Row],[Vårdplatsbehov oplanerad vård]] -> 0.02899525043
B32: Carema Rehabcentrum i Saltsjöbaden | C32: Stockholm | D32: 18.6410465 | E32: 0.2860816458 | G32: 0.1509688458 | H32: 0 | I32: 0 | J32: =HospitalData[[#This Row],[Vårdplatsbehov planerad vård]]+HospitalData[[#This Row],[Vårdplatsbehov oplanerad vård]] -> 18.92712814
B33: Carlakliniken Sophiahemmet Stockholm | C33: Stockholm | D33: 0.5625078583 | E33: 0 | G33: 0.004555600574 | H33: 0 | I33: 0 | J33: =HospitalData[[#This Row],[Vårdplatsbehov planerad vård]]+HospitalData[[#This Row],[Vårdplatsbehov oplanerad vård]] -> 0.5625078583
B34: Carlakliniken Uroclinic | C34: Stockholm | D34: 0.01449762521 | E34: 0 | G34: 0.0001174123859 | H34: 0 | I34: 0 | J34: =HospitalData[[#This Row],[Vårdplatsbehov planerad vård]]+HospitalData[[#This Row],[Vårdplatsbehov oplanerad vård]] -> 0.01449762521
B35: Carlanderska sjukhuset | C35: Västra Götaland | D35: 9.692263445 | E35: 0.03535840566 | F35: 0 | G35: 0 | H35: 0 | I35: 0 | J35: =HospitalData[[#This Row],[Vårdplatsbehov planerad vård]]+HospitalData[[#This Row],[Vårdplatsbehov oplanerad vård]] -> 9.727621851
B36: Centrallasarettet i Växjö | C36: Kronoberg | D36: 29.82243768 | E36: 191.69955 | F36: 208 | G36: 1.568253041 | H36: 5.25 | I36: 4.366498529 | J36: =HospitalData[[#This Row],[Vårdplatsbehov planerad vård]]+HospitalData[[#This Row],[Vårdplatsbehov oplanerad vård]] -> 221.5219877
B37: Centralsjukhuset i Karlstad | C37: Värmland | D37: 24.54947588 | E37: 354.7135969 | F37: 330 | G37: 4.827876804 | H37: 7.5 | I37: 7.813787306 | J37: =HospitalData[[#This Row],[Vårdplatsbehov planerad vård]]+HospitalData[[#This Row],[Vårdplatsbehov oplanerad vård]] -> 379.2630728
B38: Centralsjukhuset i Kristianstad | C38: Skåne | D38: 34.96745765 | E38: 248.4819351 | F38: 222.9645947 | G38: 0.04640501936 | H38: 6.375 | I38: 6.98495166 | J38: =HospitalData[[#This Row],[Vårdplatsbehov planerad vård]]+HospitalData[[#This Row],[Vårdplatsbehov oplanerad vård]] -> 283.4493927
B39: Dalengeriatriken, Capio Legevisitten AB | C39: Stockholm | D39: 60.60587244 | E39: 73.34297653 | G39: 0.4908307382 | H39: 0 | I39: 0 | J39: =HospitalData[[#This Row],[Vårdplatsbehov planerad vård]]+HospitalData[[#This Row],[Vårdplatsbehov oplanerad vård]] -> 133.948849
B40: Danderyds sjukhus | C40: Stockholm | D40: 86.89665689 | E40: 472.9264545 | G40: 0.7081610645 | H40: 8.5 | I40: 9.06406053 | J40: =HospitalData[[#This Row],[Vårdplatsbehov planerad vård]]+HospitalData[[#This Row],[Vårdplatsbehov oplanerad vård]] -> 559.8231114
B41: Danviksgeriatriken Familjeläkarna i Saltsjöbaden AB | C41: Stockholm | D41: 17.15648968 | E41: 22.01864352 | G41: 0.1389458175 | H41: 0 | I41: 0 | J41: =HospitalData[[#This Row],[Vårdplatsbehov planerad vård]]+HospitalData[[#This Row],[Vårdplatsbehov oplanerad vård]] -> 39.1751332
B42: Dorotea Sjukstuga | C42: Västerbotten | D42: 0.0834052344 | E42: 2.709739634 | F42: 3 | G42: 0 | H42: 0 | I42: 0 | J42: =HospitalData[[#This Row],[Vårdplatsbehov planerad vård]]+HospitalData[[#This Row],[Vårdplatsbehov oplanerad vård]] -> 2.793144868
B43: Elisabethsjukhuset | C43: Uppsala | D43: 2.695872037 | E43: 0.8711025394 | F43: 0 | G43: 0.7919318585 | H43: 0 | I43: 0 | J43: =HospitalData[[#This Row],[Vårdplatsbehov planerad vård]]+HospitalData[[#This Row],[Vårdplatsbehov oplanerad vård]] -> 3.566974576
B44: Ersta sjukhus | C44: Stockholm | D44: 57.76744662 | E44: 35.32494375 | G44: 0.4690859643 | H44: 2.75 | I44: 4 | J44: =HospitalData[[#This Row],[Vårdplatsbehov planerad vård]]+HospitalData[[#This Row],[Vårdplatsbehov oplanerad vård]] -> 93.09239037
B45: Falu lasarett | C45: Dalarna | D45: 52.72322576 | E45: 210.3025715 | F45: 234 | G45: 2.851180892 | H45: 7.5 | I45: 8.074232871 | J45: =HospitalData[[#This Row],[Vårdplatsbehov planerad vård]]+HospitalData[[#This Row],[Vårdplatsbehov oplanerad vård]] -> 263.0257973
B46: FrykCenter Rehabilitering | C46: Värmland | D46: 10.7362669 | E46: 0.07393121183 | F46: 0 | G46: 0 | H46: 0 | I46: 0 | J46: =HospitalData[[#This Row],[Vårdplatsbehov planerad vård]]+HospitalData[[#This Row],[Vårdplatsbehov oplanerad vård]] -> 10.81019811
B47: Furuhöjdens rehabiliteringshem | C47: Stockholm | D47: 35.4061003 | E47: 0 | G47: 0.2867445289 | H47: 0 | I47: 0 | J47: =HospitalData[[#This Row],[Vårdplatsbehov planerad vård]]+HospitalData[[#This Row],[Vårdplatsbehov oplanerad vård]] -> 35.4061003
B48: GynStockholm | C48: Stockholm | D48: 0.3566415802 | E48: 0 | G48: 0.002888344694 | H48: 0 | I48: 0 | J48: =HospitalData[[#This Row],[Vårdplatsbehov planerad vård]]+HospitalData[[#This Row],[Vårdplatsbehov oplanerad vård]] -> 0.3566415802
B49: Gällivare Sjukhus | C49: Norrbotten | D49: 3.323186753 | E49: 39.46393443 | F49: 48 | G49: 1.434086954 | H49: 1.75 | I49: 4 | J49: =HospitalData[[#This Row],[Vårdplatsbehov planerad vård]]+HospitalData[[#This Row],[Vårdplatsbehov oplanerad vård]] -> 42.78712118
B50: Hallands sjukhus | C50: Halland | D50: 38.82005725 | E50: 382.9160077 | F50: 387 | G50: 1.358740024 | H50: 6 | I50: 5.273350147 | J50: =HospitalData[[#This Row],[Vårdplatsbehov planerad vård]]+HospitalData[[#This Row],[Vårdplatsbehov oplanerad vård]] -> 421.736065
B51: Hallands sjukhus Halmstad | C51: Halland | D51: 10.46269773 | E51: -2.362648666 | F51: 0 | G51: 0 | H51: 7 | I51: 4.346952501 | J51: =HospitalData[[#This Row],[Vårdplatsbehov planerad vård]]+HospitalData[[#This Row],[Vårdplatsbehov oplanerad vård]] -> 8.100049062
B52: Handengeriatriken, Capio Legevisitten AB | C52: Stockholm | D52: 47.03319572 | E52: 32.28543877 | G52: 0.3809092625 | H52: 0 | I52: 0 | J52: =HospitalData[[#This Row],[Vårdplatsbehov planerad vård]]+HospitalData[[#This Row],[Vårdplatsbehov oplanerad vård]] -> 79.31863448
B53: Haparanda sjukhem | C53: Norrbotten | D53: 0.2674719586 | E53: 5.666988107 | F53: 7 | G53: 0 | H53: 0 | I53: 0 | J53: =HospitalData[[#This Row],[Vårdplatsbehov planerad vård]]+HospitalData[[#This Row],[Vårdplatsbehov oplanerad vård]] -> 5.934460065
B54: Helsingborgs Lasarett AB | C54: Skåne | D54: 42.62208828 | E54: 324.4138541 | F54: 287.4417122 | G54: 7.588237254 | H54: 6 | I54: 5.950315259 | J54: =HospitalData[[#This Row],[Vårdplatsbehov planerad vård]]+HospitalData[[#This Row],[Vårdplatsbehov oplanerad vård]] -> 367.0359423
B55: Hospice Gabriel | C55: Västra Götaland | D55: 4.345700316 | E55: 0 | F55: 0 | G55: 0 | H55: 0 | I55: 0 | J55: =HospitalData[[#This Row],[Vårdplatsbehov planerad vård]]+HospitalData[[#This Row],[Vårdplatsbehov oplanerad vård]] -> 4.345700316
B56: Hudiksvalls sjukhus | C56: Gävleborg | D56: 6.681034064 | E56: 113.6558984 | F56: 94.8 | G56: 0.6511232212 | H56: 4.5 | I56: 4 | J56: =HospitalData[[#This Row],[Vårdplatsbehov planerad vård]]+HospitalData[[#This Row],[Vårdplatsbehov oplanerad vård]] -> 120.3369325
B57: Höglandssjukhuset | C57: Jönköping | D57: 6.819401625 | E57: 115.3888782 | F57: 116 | G57: -0.2153984901 | H57: 3.75 | I57: 4.56295082 | J57: =HospitalData[[#This Row],[Vårdplatsbehov planerad vård]]+HospitalData[[#This Row],[Vårdplatsbehov oplanerad vård]] -> 122.2082798
B58: Jakobsbergs sjukhus | C58: Stockholm | D58: 9.553935015 | E58: 2.99903568 | G58: 0.07737476233 | H58: 0 | I58: 0 | J58: =HospitalData[[#This Row],[Vårdplatsbehov planerad vård]]+HospitalData[[#This Row],[Vårdplatsbehov oplanerad vård]] -> 12.5529707
B59: Jokkmokks sjukhem | C59: Norrbotten | D59: 0.350877193 | E59: 2.37544198 | F59: 4 | G59: 0 | H59: 0 | I59: 0 | J59: =HospitalData[[#This Row],[Vårdplatsbehov planerad vård]]+HospitalData[[#This Row],[Vårdplatsbehov oplanerad vård]] -> 2.726319173
B60: Kalix sjukhus | C60: Norrbotten | D60: 0.6689962611 | E60: 27.8235937 | F60: 23 | G60: 0 | H60: 1.75 | I60: 4 | J60: =HospitalData[[#This Row],[Vårdplatsbehov planerad vård]]+HospitalData[[#This Row],[Vårdplatsbehov oplanerad vård]] -> 28.49258996
B61: Karlskoga lasarett | C61: Örebro | D61: 4.550571246 | E61: 29.39463195 | F61: 65 | G61: 2.272774295 | H61: 4 | I61: 4 | J61: =HospitalData[[#This Row],[Vårdplatsbehov planerad vård]]+HospitalData[[#This Row],[Vårdplatsbehov oplanerad vård]] -> 33.9452032
B62: Karolinska universitetssjukhuset Huddinge | C62: Stockholm | D62: 95.2311783 | E62: 421.5981678 | G62: 0.7718455427 | H62: 7.5 | I62: 10.75161833 | J62: =HospitalData[[#This Row],[Vårdplatsbehov planerad vård]]+HospitalData[[#This Row],[Vårdplatsbehov oplanerad vård]] -> 516.8293461
B63: Karolinska universitetssjukhuset Solna | C63: Stockholm | D63: 51.01711531 | E63: 9.703117968 | G63: 0.4240465731 | H63: 31.71428571 | I63: 30.22354613 | J63: =HospitalData[[#This Row],[Vårdplatsbehov planerad vård]]+HospitalData[[#This Row],[Vårdplatsbehov oplanerad vård]] -> 60.72023328
B64: Kiruna Sjukhus | C64: Norrbotten | D64: 1.43514524 | E64: 24.27515268 | F64: 20 | G64: 0 | H64: 0 | I64: 0 | J64: =HospitalData[[#This Row],[Vårdplatsbehov planerad vård]]+HospitalData[[#This Row],[Vårdplatsbehov oplanerad vård]] -> 25.71029792
B65: Kirurghuset Västerås | C65: Västmanland | D65: 0.02300834052 | E65: 0 | G65: 0 | H65: 0 | I65: 0 | J65: =HospitalData[[#This Row],[Vårdplatsbehov planerad vård]]+HospitalData[[#This Row],[Vårdplatsbehov oplanerad vård]] -> 0.02300834052
B66: Kristinehamns sjukhus | C66: Värmland | D66: 0.04314063848 | E66: 10.6428801 | F66: 9 | G66: 0 | H66: 0 | I66: 0 | J66: =HospitalData[[#This Row],[Vårdplatsbehov planerad vård]]+HospitalData[[#This Row],[Vårdplatsbehov oplanerad vård]] -> 10.68602074
B67: Kullbergska sjukhuset | C67: Södermanland | D67: 4.587921824 | E67: 42.80617165 | F67: 40.8 | G67: 0.5010653381 | H67: 0 | I67: 0 | J67: =HospitalData[[#This Row],[Vårdplatsbehov planerad vård]]+HospitalData[[#This Row],[Vårdplatsbehov oplanerad vård]] -> 47.39409347
B68: Lasarettet i Enköping | C68: Uppsala | D68: 11.60820859 | E68: 56.54130505 | F68: 59 | G68: 4.501507406 | H68: 0 | I68: 0 | J68: =HospitalData[[#This Row],[Vårdplatsbehov planerad vård]]+HospitalData[[#This Row],[Vårdplatsbehov oplanerad vård]] -> 68.14951363
B69: Lasarettet i Finspång | C69: Östergötland | D69: 2.878918608 | E69: 14.86338798 | F69: 18 | G69: 0 | H69: 0 | I69: 0 | J69: =HospitalData[[#This Row],[Vårdplatsbehov planerad vård]]+HospitalData[[#This Row],[Vårdplatsbehov oplanerad vård]] -> 17.74230659
B70: Lasarettet i Landskrona | C70: Skåne | D70: 4.760039691 | E70: 51.57184185 | F70: 49.42315574 | G70: -0.5635150981 | H70: 0 | I70: 0 | J70: =HospitalData[[#This Row],[Vårdplatsbehov planerad vård]]+HospitalData[[#This Row],[Vårdplatsbehov oplanerad vård]] -> 56.33188154
B71: Lasarettet i Motala | C71: Östergötland | D71: 2.627346253 | E71: 51.56380585 | F71: 42 | G71: 1.566086546 | H71: 0 | I71: 0 | J71: =HospitalData[[#This Row],[Vårdplatsbehov planerad vård]]+HospitalData[[#This Row],[Vårdplatsbehov oplanerad vård]] -> 54.1911521
B72: Lasarettet i Ystad | C72: Skåne | D72: 14.15089868 | E72: 93.29672131 | F72: 77.52771595 | G72: 0.7830528384 | H72: 2.666666667 | I72: 4 | J72: =HospitalData[[#This Row],[Vårdplatsbehov planerad vård]]+HospitalData[[#This Row],[Vårdplatsbehov oplanerad vård]] -> 107.44762
B73: Lasarettet Trelleborg | C73: Skåne | D73: 15.19504536 | E73: 44.84731598 | F73: 52.18499545 | G73: 2.419664284 | H73: 0 | I73: 0 | J73: =HospitalData[[#This Row],[Vårdplatsbehov planerad vård]]+HospitalData[[#This Row],[Vårdplatsbehov oplanerad vård]] -> 60.04236134
B74: Lidingö sjukhus | C74: Stockholm | D74: 12.50275198 | E74: 1.359691418 | G74: 0.1012564416 | H74: 0 | I74: 0 | J74: =HospitalData[[#This Row],[Vårdplatsbehov planerad vård]]+HospitalData[[#This Row],[Vårdplatsbehov oplanerad vård]] -> 13.8624434
B75: Lindesbergs lasarett | C75: Örebro | D75: 2.959044378 | E75: 17.652009 | F75: 42 | G75: 1.623410211 | H75: 2 | I75: 4 | J75: =HospitalData[[#This Row],[Vårdplatsbehov planerad vård]]+HospitalData[[#This Row],[Vårdplatsbehov oplanerad vård]] -> 20.61105338
B76: Ljungby lasarett | C76: Kronoberg | D76: 4.988512481 | E76: 53.09710704 | F76: 49.7 | G76: 0.07467871626 | H76: 1.94047619 | I76: 4 | J76: =HospitalData[[#This Row],[Vårdplatsbehov planerad vård]]+HospitalData[[#This Row],[Vårdplatsbehov oplanerad vård]] -> 58.08561952
B77: Ludvika lasarett | C77: Dalarna | D77: 12.50503307 | E77: 18.64030858 | F77: 29 | G77: 0 | H77: 0 | I77: 0 | J77: =HospitalData[[#This Row],[Vårdplatsbehov planerad vård]]+HospitalData[[#This Row],[Vårdplatsbehov oplanerad vård]] -> 31.14534166
B78: Lycksele lasarett | C78: Västerbotten | D78: 8.167361641 | E78: 41.97306332 | F78: 44 | G78: 3.025083815 | H78: 2 | I78: 4 | J78: =HospitalData[[#This Row],[Vårdplatsbehov planerad vård]]+HospitalData[[#This Row],[Vårdplatsbehov oplanerad vård]] -> 50.14042496
B79: Långbro sjukhus | C79: Stockholm | D79: 9.600327416 | E79: 3.095467695 | G79: 0.07775048197 | H79: 0 | I79: 0 | J79: =HospitalData[[#This Row],[Vårdplatsbehov planerad vård]]+HospitalData[[#This Row],[Vårdplatsbehov oplanerad vård]] -> 12.69579511
B80: Länssjukhuset Gävle-Sandviken | C80: Gävleborg | D80: 31.34174746 | E80: 262.4143684 | F80: 279.5 | G80: 1.67568476 | H80: 6 | I80: 5.44346364 | J80: =HospitalData[[#This Row],[Vårdplatsbehov planerad vård]]+HospitalData[[#This Row],[Vårdplatsbehov oplanerad vård]] -> 293.7561158
B81: Länssjukhuset i Kalmar | C81: Kalmar | D81: 74.53950939 | E81: 171.8963356 | F81: 263 | G81: 1.016759895 | H81: 6.714285714 | I81: 5.063850357 | J81: =HospitalData[[#This Row],[Vårdplatsbehov planerad vård]]+HospitalData[[#This Row],[Vårdplatsbehov oplanerad vård]] -> 246.435845
B82: Länssjukhuset i Sundsvall - Härnösand | C82: Västernorrland | D82: 13.04814462 | E82: 261.8270331 | F82: 219.34 | G82: 1.887201277 | H82: 5.5 | I82: 6.149432535 | J82: =HospitalData[[#This Row],[Vårdplatsbehov planerad vård]]+HospitalData[[#This Row],[Vårdplatsbehov oplanerad vård]] -> 274.8751777
B83: Länssjukhuset Ryhov | C83: Jönköping | D83: 38.20795628 | E83: 252.3976213 | F83: 314 | G83: 0.1636652283 | H83: 8 | I83: 7.999579655 | J83: =HospitalData[[#This Row],[Vårdplatsbehov planerad vård]]+HospitalData[[#This Row],[Vårdplatsbehov oplanerad vård]] -> 290.6055776
B84: Malå Sjukstuga | C84: Västerbotten | D84: 0 | E84: 0 | F84: 0 | G84: 0 | H84: 0 | I84: 0 | J84: =HospitalData[[#This Row],[Vårdplatsbehov planerad vård]]+HospitalData[[#This Row],[Vårdplatsbehov oplanerad vård]] -> 0
B85: Mandometerkliniken | C85: Stockholm | D85: 29.55195923 | E85: 2.192221151 | G85: 0.2393334075 | H85: 0 | I85: 0 | J85: =HospitalData[[#This Row],[Vårdplatsbehov planerad vård]]+HospitalData[[#This Row],[Vårdplatsbehov oplanerad vård]] -> 31.74418039
B86: Mora lasarett | C86: Dalarna | D86: 13.19259249 | E86: 68.80035358 | F86: 75 | G86: 1.575652598 | H86: 4.5 | I86: 4 | J86: =HospitalData[[#This Row],[Vårdplatsbehov planerad vård]]+HospitalData[[#This Row],[Vårdplatsbehov oplanerad vård]] -> 81.99294607
B87: Mälargården | C87: Stockholm | D87: 10.41799348 | E87: 0 | G87: 0.08437254054 | H87: 0 | I87: 0 | J87: =HospitalData[[#This Row],[Vårdplatsbehov planerad vård]]+HospitalData[[#This Row],[Vårdplatsbehov oplanerad vård]] -> 10.41799348
B88: Mälarsjukhuset | C88: Södermanland | D88: 26.53420178 | E88: 268.5558341 | F88: 266.6 | G88: 0.2461373591 | H88: 8 | I88: 7.399831862 | J88: =HospitalData[[#This Row],[Vårdplatsbehov planerad vård]]+HospitalData[[#This Row],[Vårdplatsbehov oplanerad vård]] -> 295.0900359
B89: Nacka kommun Hallens äldrecentrum | C89: Stockholm | D89: 9.594528366 | E89: 2.282224365 | G89: 0.07770351701 | H89: 0 | I89: 0 | J89: =HospitalData[[#This Row],[Vårdplatsbehov planerad vård]]+HospitalData[[#This Row],[Vårdplatsbehov oplanerad vård]] -> 11.87675273
B90: Nacka Närsjukhus | C90: Stockholm | D90: 31.80199067 | E90: 37.17454195 | G90: 0.2575558098 | H90: 0 | I90: 0 | J90: =HospitalData[[#This Row],[Vårdplatsbehov planerad vård]]+HospitalData[[#This Row],[Vårdplatsbehov oplanerad vård]] -> 68.97653262
B91: Norra Älvsborgs Länssjukhus och Uddevalla sjukhus | C91: Västra Götaland | D91: 54.63148419 | E91: 429.2754741 | F91: 381 | G91: 1.355585428 | H91: 7.5 | I91: 12.70647331 | J91: =HospitalData[[#This Row],[Vårdplatsbehov planerad vård]]+HospitalData[[#This Row],[Vårdplatsbehov oplanerad vård]] -> 483.9069583
B92: Norrlands universitetssjukhus | C92: Västerbotten | D92: 118.7625071 | E92: 255.6966892 | F92: 294 | G92: 13.58378982 | H92: 14.71428571 | I92: 15.07473728 | J92: =HospitalData[[#This Row],[Vårdplatsbehov planerad vård]]+HospitalData[[#This Row],[Vårdplatsbehov oplanerad vård]] -> 374.4591963
B93: Norrtälje sjukhus | C93: Stockholm | D93: 26.45032122 | E93: 87.94226937 | G93: 0.2160387901 | H93: 3 | I93: 4 | J93: =HospitalData[[#This Row],[Vårdplatsbehov planerad vård]]+HospitalData[[#This Row],[Vårdplatsbehov oplanerad vård]] -> 114.3925906
B94: Nya Karolinska Solna | C94: Stockholm | D94: 192.6879367 | E94: 354.694632 | G94: 1.560528022 | H94: 0 | I94: 0 | J94: =HospitalData[[#This Row],[Vårdplatsbehov planerad vård]]+HospitalData[[#This Row],[Vårdplatsbehov oplanerad vård]] -> 547.3825687
B95: Nyköpings lasarett | C95: Södermanland | D95: 9.179992897 | E95: 125.8330762 | F95: 125.9 | G95: -0.1846030193 | H95: 5.5 | I95: 4.423118958 | J95: =HospitalData[[#This Row],[Vårdplatsbehov planerad vård]]+HospitalData[[#This Row],[Vårdplatsbehov oplanerad vård]] -> 135.0130691
B96: Nynäshamns sjukhus | C96: Stockholm | D96: 5.845442486 | E96: 9.582127933 | G96: 0.04734067401 | H96: 0 | I96: 0 | J96: =HospitalData[[#This Row],[Vårdplatsbehov planerad vård]]+HospitalData[[#This Row],[Vårdplatsbehov oplanerad vård]] -> 15.42757042
B97: Ortho o Spine Center | C97: Stockholm | D97: 9.481446889 | E97: 0.07393121183 | G97: 0.0767877004 | H97: 0 | I97: 0 | J97: =HospitalData[[#This Row],[Vårdplatsbehov planerad vård]]+HospitalData[[#This Row],[Vårdplatsbehov oplanerad vård]] -> 9.555378101
B98: Ortopediska Huset | C98: Stockholm | D98: 4.328990889 | E98: 0.009643201543 | G98: 0.03505933844 | H98: 0 | I98: 0 | J98: =HospitalData[[#This Row],[Vårdplatsbehov planerad vård]]+HospitalData[[#This Row],[Vårdplatsbehov oplanerad vård]] -> 4.33863409
B99: Oskarshamns sjukhus | C99: Kalmar | D99: 6.686281869 | E99: 22.30633237 | F99: 29 | G99: 0.02824333042 | H99: 0 | I99: 0 | J99: =HospitalData[[#This Row],[Vårdplatsbehov planerad vård]]+HospitalData[[#This Row],[Vårdplatsbehov oplanerad vård]] -> 28.99261424
B100: Pajala sjukhem | C100: Norrbotten | D100: 0.8167960886 | E100: 5.56412729 | F100: 6 | G100: 0 | H100: 0 | I100: 0 | J100: =HospitalData[[#This Row],[Vårdplatsbehov planerad vård]]+HospitalData[[#This Row],[Vårdplatsbehov oplanerad vård]] -> 6.380923379
B101: Perituskliniken AB | C101: Skåne | D101: 1.046879494 | E101: 0 | F101: 0 | G101: 0 | H101: 0 | I101: 0 | J101: =HospitalData[[#This Row],[Vårdplatsbehov planerad vård]]+HospitalData[[#This Row],[Vårdplatsbehov oplanerad vård]] -> 1.046879494
B102: Piteå Älvdals sjukhus | C102: Norrbotten | D102: 13.33293165 | E102: 62.48206365 | F102: 62 | G102: 3.38688621 | H102: 2.75 | I102: 4 | J102: =HospitalData[[#This Row],[Vårdplatsbehov planerad vård]]+HospitalData[[#This Row],[Vårdplatsbehov oplanerad vård]] -> 75.8149953
B103: Rehab Station Stockholm | C103: Stockholm | D103: 37.27629395 | E103: 1.986499518 | G103: 0.3018907267 | H103: 0 | I103: 0 | J103: =HospitalData[[#This Row],[Vårdplatsbehov planerad vård]]+HospitalData[[#This Row],[Vårdplatsbehov oplanerad vård]] -> 39.26279347
B104: Rehabcenter Mösseberg | C104: Stockholm | D104: 6.204983591 | E104: 0 | G104: 0.05025250118 | H104: 0 | I104: 0 | J104: =HospitalData[[#This Row],[Vårdplatsbehov planerad vård]]+HospitalData[[#This Row],[Vårdplatsbehov oplanerad vård]] -> 6.204983591
B105: Ryggkirurgiskt Centrum AB | C105: Stockholm | D105: 0.750976986 | E105: 0.01928640309 | G105: 0.006081961592 | H105: 0 | I105: 0 | J105: =HospitalData[[#This Row],[Vårdplatsbehov planerad vård]]+HospitalData[[#This Row],[Vårdplatsbehov oplanerad vård]] -> 0.7702633891
B106: S:t Eriks sjukhus | C106: Stockholm | D106: 2.70235734 | E106: 5.615557698 | G106: 0.02188566874 | H106: 0 | I106: 0 | J106: =HospitalData[[#This Row],[Vårdplatsbehov planerad vård]]+HospitalData[[#This Row],[Vårdplatsbehov oplanerad vård]] -> 8.317915038
B107: Sabbatsbergs sjukhem | C107: Stockholm | D107: 47.16077482 | E107: 28.27708132 | G107: 0.3819424915 | H107: 0 | I107: 0 | J107: =HospitalData[[#This Row],[Vårdplatsbehov planerad vård]]+HospitalData[[#This Row],[Vårdplatsbehov oplanerad vård]] -> 75.43785614
B108: Sahlgrenska universitetssjukhuset | C108: Västra Götaland | D108: 295.9996082 | E108: 885.2774671 | F108: 969 | G108: 9.905417793 | H108: 49.78571429 | I108: 55.73421868 | J108: =HospitalData[[#This Row],[Vårdplatsbehov planerad vård]]+HospitalData[[#This Row],[Vårdplatsbehov oplanerad vård]] -> 1181.277075
B109: Simrishamns sjukhus | C109: Skåne | D109: 0.07190106414 | E109: 39.92928319 | F109: 34 | G109: 0 | H109: 0 | I109: 0 | J109: =HospitalData[[#This Row],[Vårdplatsbehov planerad vård]]+HospitalData[[#This Row],[Vårdplatsbehov oplanerad vård]] -> 40.00118425
B110: Sjukhem NÖSO | C110: Stockholm | D110: 13.5929734 | E110: 2.06364513 | G110: 0.1100858531 | H110: 0 | I110: 0 | J110: =HospitalData[[#This Row],[Vårdplatsbehov planerad vård]]+HospitalData[[#This Row],[Vårdplatsbehov oplanerad vård]] -> 15.65661853
B111: Sjukhusen i Väster | C111: Västra Götaland | D111: 49.27607748 | E111: 232.840855 | F111: 229 | G111: 0.4769402915 | H111: 7.5 | I111: 8.786591005 | J111: =HospitalData[[#This Row],[Vårdplatsbehov planerad vård]]+HospitalData[[#This Row],[Vårdplatsbehov oplanerad vård]] -> 282.1169325
B112: Sjukhuset i Arvika | C112: Värmland | D112: 5.058660176 | E112: 38.36213436 | F112: 36 | G112: 1.796652698 | H112: 2 | I112: 4 | J112: =HospitalData[[#This Row],[Vårdplatsbehov planerad vård]]+HospitalData[[#This Row],[Vårdplatsbehov oplanerad vård]] -> 43.42079454
B113: Sjukhuset i Hässleholm | C113: Skåne | D113: 20.4460727 | E113: 43.97299904 | F113: 63.79610656 | G113: 10.06355904 | H113: 0 | I113: 0 | J113: =HospitalData[[#This Row],[Vårdplatsbehov planerad vård]]+HospitalData[[#This Row],[Vårdplatsbehov oplanerad vård]] -> 64.41907173
B114: Sjukhuset i Säffle | C114: Värmland | D114: 0 | E114: 13.48441016 | F114: 13 | G114: 0 | H114: 0 | I114: 0 | J114: =HospitalData[[#This Row],[Vårdplatsbehov planerad vård]]+HospitalData[[#This Row],[Vårdplatsbehov oplanerad vård]] -> 13.48441016
B115: Sjukhuset i Torsby | C115: Värmland | D115: 5.893828428 | E115: 48.03211186 | F115: 40 | G115: 3.352413415 | H115: 4 | I115: 4.126010929 | J115: =HospitalData[[#This Row],[Vårdplatsbehov planerad vård]]+HospitalData[[#This Row],[Vårdplatsbehov oplanerad vård]] -> 53.92594029
B116: Skaraborgs sjukhus | C116: Västra Götaland | D116: 16.70635372 | E116: 392.6349405 | F116: 342 | G116: 0.2358906794 | H116: 7.5 | I116: 8.312274065 | J116: =HospitalData[[#This Row],[Vårdplatsbehov planerad vård]]+HospitalData[[#This Row],[Vårdplatsbehov oplanerad vård]] -> 409.3412943
B117: Skellefteå lasarett | C117: Västerbotten | D117: 9.003388298 | E117: 112.0823529 | F117: 92 | G117: 2.719666699 | H117: 6.5 | I117: 6.022782682 | J117: =HospitalData[[#This Row],[Vårdplatsbehov planerad vård]]+HospitalData[[#This Row],[Vårdplatsbehov oplanerad vård]] -> 121.0857412
B118: Skånes universitetssjukhus Lund | C118: Skåne | D118: 145.9199885 | E118: 429.5850209 | G118: 0 | H118: 30 | I118: 29.09530265 | J118: =HospitalData[[#This Row],[Vårdplatsbehov planerad vård]]+HospitalData[[#This Row],[Vårdplatsbehov oplanerad vård]] -> 575.5050094
B119: Skånes universitetssjukhus Malmö | C119: Skåne | D119: 105.7870865 | E119: 541.3244937 | G119: 17.96761565 | H119: 9.5 | I119: 6.865163934 | J119: =HospitalData[[#This Row],[Vårdplatsbehov planerad vård]]+HospitalData[[#This Row],[Vårdplatsbehov oplanerad vård]] -> 647.1115802
B120: Sollefteå sjukhus | C120: Västernorrland | D120: 3.033412605 | E120: 35.80070717 | F120: 32.604 | G120: 0.6039044086 | H120: 2 | I120: 4 | J120: =HospitalData[[#This Row],[Vårdplatsbehov planerad vård]]+HospitalData[[#This Row],[Vårdplatsbehov oplanerad vård]] -> 38.83411977
B121: Sollentuna sjukhus | C121: Stockholm | D121: 69.16816989 | E121: 68.52780456 | G121: 0.5601744933 | H121: 0 | I121: 0 | J121: =HospitalData[[#This Row],[Vårdplatsbehov planerad vård]]+HospitalData[[#This Row],[Vårdplatsbehov oplanerad vård]] -> 137.6959745
B122: Sophiahemmet | C122: Stockholm | D122: 9.142202459 | E122: 0.1671488267 | G122: 0.07404025057 | H122: 0 | I122: 0 | J122: =HospitalData[[#This Row],[Vårdplatsbehov planerad vård]]+HospitalData[[#This Row],[Vårdplatsbehov oplanerad vård]] -> 9.309351286
B123: Sorsele Sjukstuga | C123: Västerbotten | D123: 0.05464480874 | E123: 2.568306011 | F123: 3 | G123: 0 | H123: 0 | I123: 0 | J123: =HospitalData[[#This Row],[Vårdplatsbehov planerad vård]]+HospitalData[[#This Row],[Vårdplatsbehov oplanerad vård]] -> 2.62295082
B124: Specialist Center Skåne AB | C124: Skåne | D124: 1.420765027 | E124: 0 | F124: 0 | G124: 0 | H124: 0 | I124: 0 | J124: =HospitalData[[#This Row],[Vårdplatsbehov planerad vård]]+HospitalData[[#This Row],[Vårdplatsbehov oplanerad vård]] -> 1.420765027
B125: Specialistcenter Uppsala AB, S:t Johanniskliniken | C125: Uppsala | D125: 0.5383066312 | E125: 0.003214400514 | F125: 0 | G125: -0.01389354138 | H125: 0 | I125: 0 | J125: =HospitalData[[#This Row],[Vårdplatsbehov planerad vård]]+HospitalData[[#This Row],[Vårdplatsbehov oplanerad vård]] -> 0.5415210317
B126: Specialistsjukvården i Falkenberg | C126: Halland | D126: 4.466494104 | E126: 0.5914496946 | G126: 0 | H126: 0 | I126: 0 | J126: =HospitalData[[#This Row],[Vårdplatsbehov planerad vård]]+HospitalData[[#This Row],[Vårdplatsbehov oplanerad vård]] -> 5.057943799
B127: Stockholms sjukhem | C127: Stockholm | D127: 106.0327313 | E127: 10.05464481 | G127: 0.8587307083 | H127: 0 | I127: 0 | J127: =HospitalData[[#This Row],[Vårdplatsbehov planerad vård]]+HospitalData[[#This Row],[Vårdplatsbehov oplanerad vård]] -> 116.0873761
B128: Stora Sköndals sjukhus | C128: Stockholm | D128: 4.479766191 | E128: 18.89746062 | G128: 0.03628042725 | H128: 0 | I128: 0 | J128: =HospitalData[[#This Row],[Vårdplatsbehov planerad vård]]+HospitalData[[#This Row],[Vårdplatsbehov oplanerad vård]] -> 23.37722681
B129: Storumans Sjukstuga | C129: Västerbotten | D129: 0.1351740006 | E129: 5.962712954 | F129: 7 | G129: 0 | H129: 0 | I129: 0 | J129: =HospitalData[[#This Row],[Vårdplatsbehov planerad vård]]+HospitalData[[#This Row],[Vårdplatsbehov oplanerad vård]] -> 6.097886955
B130: Sunderby sjukhus | C130: Norrbotten | D130: 14.40550299 | E130: 194.9544519 | F130: 176 | G130: 2.390144923 | H130: 6.5 | I130: 7.710928962 | J130: =HospitalData[[#This Row],[Vårdplatsbehov planerad vård]]+HospitalData[[#This Row],[Vårdplatsbehov oplanerad vård]] -> 209.3599549
B131: Södermalms läkarhus | C131: Stockholm | D131: 0.3363449049 | E131: 0 | G131: 0.002723967354 | H131: 0 | I131: 0 | J131: =HospitalData[[#This Row],[Vårdplatsbehov planerad vård]]+HospitalData[[#This Row],[Vårdplatsbehov oplanerad vård]] -> 0.3363449049
B132: Södersjukhuset | C132: Stockholm | D132: 55.94053665 | E132: 504.0195436 | G132: 0.4530474324 | H132: 17.5 | I132: 16.04722573 | J132: =HospitalData[[#This Row],[Vårdplatsbehov planerad vård]]+HospitalData[[#This Row],[Vårdplatsbehov oplanerad vård]] -> 559.9600802
B133: Södertälje sjukhus | C133: Stockholm | D133: 46.44286199 | E133: 147.8245902 | G133: 0.3770581362 | H133: 5.125 | I133: 4 | J133: =HospitalData[[#This Row],[Vårdplatsbehov planerad vård]]+HospitalData[[#This Row],[Vårdplatsbehov oplanerad vård]] -> 194.2674522
B134: Södertälje Ögonklinik | C134: Stockholm | D134: 0.8060679618 | E134: 0.003214400514 | G134: 0.006528128658 | H134: 0 | I134: 0 | J134: =HospitalData[[#This Row],[Vårdplatsbehov planerad vård]]+HospitalData[[#This Row],[Vårdplatsbehov oplanerad vård]] -> 0.8092823624
B135: Södra Älvsborgs sjukhus | C135: Västra Götaland | D135: 42.91073098 | E135: 293.4863067 | F135: 289 | G135: 1.888096528 | H135: 6.75 | I135: 7.220849096 | J135: =HospitalData[[#This Row],[Vårdplatsbehov planerad vård]]+HospitalData[[#This Row],[Vårdplatsbehov oplanerad vård]] -> 336.3970376
B136: Tärnaby Sjukstuga | C136: Västerbotten | D136: 0.02876042565 | E136: 1.041465767 | F136: 2 | G136: 0 | H136: 0 | I136: 0 | J136: =HospitalData[[#This Row],[Vårdplatsbehov planerad vård]]+HospitalData[[#This Row],[Vårdplatsbehov oplanerad vård]] -> 1.070226192
B137: Universitetssjukhuset i Linköping | C137: Östergötland | D137: 93.91949209 | E137: 314.1313083 | F137: 365 | G137: 9.576725337 | H137: 20.92857143 | I137: 24.40802858 | J137: =HospitalData[[#This Row],[Vårdplatsbehov planerad vård]]+HospitalData[[#This Row],[Vårdplatsbehov oplanerad vård]] -> 408.0508004
B138: Universitetssjukhuset Örebro | C138: Örebro | D138: 153.4456244 | E138: 299.7779171 | F138: 380 | G138: 11.7246293 | H138: 12.89285714 | I138: 12.75405633 | J138: =HospitalData[[#This Row],[Vårdplatsbehov planerad vård]]+HospitalData[[#This Row],[Vårdplatsbehov oplanerad vård]] -> 453.2235415
B139: Vilhelmina Sjukstuga | C139: Västerbotten | D139: 0.3134886396 | E139: 4.503375121 | F139: 6 | G139: 0 | H139: 0 | I139: 0 | J139: =HospitalData[[#This Row],[Vårdplatsbehov planerad vård]]+HospitalData[[#This Row],[Vårdplatsbehov oplanerad vård]] -> 4.81686376
B140: Visby lasarett | C140: Gotland | D140: 20.22102239 | E140: 102.8817101 | F140: 133 | G140: 0.2748043812 | H140: 5 | I140: 4 | J140: =HospitalData[[#This Row],[Vårdplatsbehov planerad vård]]+HospitalData[[#This Row],[Vårdplatsbehov oplanerad vård]] -> 123.1027324
B141: Vrinnevisjukhuset i Norrköping | C141: Östergötland | D141: 16.78607659 | E141: 200.5081003 | F141: 188 | G141: 4.430223847 | H141: 5 | I141: 5.425809164 | J141: =HospitalData[[#This Row],[Vårdplatsbehov planerad vård]]+HospitalData[[#This Row],[Vårdplatsbehov oplanerad vård]] -> 217.2941769
B142: Vårdgivare Bromma sjukhus | C142: Stockholm | D142: 5.923729662 | E142: 0.08678881389 | G142: 0.04797470089 | H142: 0 | I142: 0 | J142: =HospitalData[[#This Row],[Vårdplatsbehov planerad vård]]+HospitalData[[#This Row],[Vårdplatsbehov oplanerad vård]] -> 6.010518476
B143: Värnamo sjukhus | C143: Jönköping | D143: 5.39618246 | E143: 88.62957248 | F143: 98 | G143: 0.2365620972 | H143: 3.75 | I143: 4.266885246 | J143: =HospitalData[[#This Row],[Vårdplatsbehov planerad vård]]+HospitalData[[#This Row],[Vårdplatsbehov oplanerad vård]] -> 94.02575494
B144: Västerviks sjukhus | C144: Kalmar | D144: 23.14272907 | E144: 64.59559627 | F144: 111 | G144: 1.402752077 | H144: 5 | I144: 4.683984868 | J144: =HospitalData[[#This Row],[Vårdplatsbehov planerad vård]]+HospitalData[[#This Row],[Vårdplatsbehov oplanerad vård]] -> 87.73832534
B145: Västmanlands sjukhus Köping | C145: Västmanland | D145: 12.92669655 | E145: 63.41530055 | F145: 67 | G145: 0.4676801561 | H145: 0 | I145: 0 | J145: =HospitalData[[#This Row],[Vårdplatsbehov planerad vård]]+HospitalData[[#This Row],[Vårdplatsbehov oplanerad vård]] -> 76.3419971
B146: Västmanlands sjukhus Sala | C146: Västmanland | D146: 16.39747019 | E146: 3.731918997 | F146: 42 | G146: 4.81852282 | H146: 0 | I146: 0 | J146: =HospitalData[[#This Row],[Vårdplatsbehov planerad vård]]+HospitalData[[#This Row],[Vårdplatsbehov oplanerad vård]] -> 20.12938919
B147: Västmanlands sjukhus Västerås | C147: Västmanland | D147: 63.72117599 | E147: 298.8727097 | F147: 302 | G147: 6.731759823 | H147: 7.375 | I147: 7.624968474 | J147: =HospitalData[[#This Row],[Vårdplatsbehov planerad vård]]+HospitalData[[#This Row],[Vårdplatsbehov oplanerad vård]] -> 362.5938857
B148: Åsele Sjukstuga | C148: Västerbotten | D148: 0.06902502157 | E148: 2.182577949 | F148: 3 | G148: 0 | H148: 0 | I148: 0 | J148: =HospitalData[[#This Row],[Vårdplatsbehov planerad vård]]+HospitalData[[#This Row],[Vårdplatsbehov oplanerad vård]] -> 2.251602971
B149: Ängelholms sjukhus | C149: Skåne | D149: 12.29746197 | E149: 54.57087753 | F149: 58.67099271 | G149: 2.659843337 | H149: 0 | I149: 0 | J149: =HospitalData[[#This Row],[Vårdplatsbehov planerad vård]]+HospitalData[[#This Row],[Vårdplatsbehov oplanerad vård]] -> 66.8683395
B150: Örnsköldsviks sjukhus | C150: Västernorrland | D150: 5.882589595 | E150: 99.1932819 | F150: 92.046 | G150: -0.03774402554 | H150: 3.75 | I150: 4 | J150: =HospitalData[[#This Row],[Vårdplatsbehov planerad vård]]+HospitalData[[#This Row],[Vårdplatsbehov oplanerad vård]] -> 105.0758715
B151: Östersunds sjukhus | C151: Jämtland Härjedalen | D151: 23.78445714 | E151: 188.7734812 | F151: 200.91 | G151: 2.572262719 | H151: 6.375 | I151: 5.660277427 | J151: =HospitalData[[#This Row],[Vårdplatsbehov planerad vård]]+HospitalData[[#This Row],[Vårdplatsbehov oplanerad vård]] -> 212.5579383
B152: Överkalix sjukhem | C152: Norrbotten | D152: 0.66148979 | E152: 4.165863067 | F152: 5 | G152: 0 | H152: 0 | I152: 0 | J152: =HospitalData[[#This Row],[Vårdplatsbehov planerad vård]]+HospitalData[[#This Row],[Vårdplatsbehov oplanerad vård]] -> 4.827352857
B153: Övertorneå sjukhem | C153: Norrbotten | D153: 0.03738855335 | E153: 5.93699775 | F153: 7 | G153: 0 | H153: 0 | I153: 0 | J153: =HospitalData[[#This Row],[Vårdplatsbehov planerad vård]]+HospitalData[[#This Row],[Vårdplatsbehov oplanerad vård]] -> 5.974386303
C154: Sverige | D154: =SUBTOTAL(109,HospitalData[Vårdplatsbehov planerad vård]) -> 3660.928671 | E154: =SUBTOTAL(109,HospitalData[Vårdplatsbehov oplanerad vård]) -> 13421.17512 | F154: =SUBTOTAL(109,HospitalData[Sjukhusets egna disp vpl]) -> 10152.10927 | G154: =SUBTOTAL(109,HospitalData[Varav platser baserat på patienter som väntar på vård]) -> 187.5284126 | H154: =SUBTOTAL(109,HospitalData[Disponibla vårdplatser IVA]) -> 455.5059524 | I154: =SUBTOTAL(109,HospitalData[Riktvärde IVA kort sikt med hänsyn till riktlinjer]) -> 499.237025 | J154: =SUBTOTAL(109,HospitalData[Riktvärde kort sikt]) -> 17082.10379

Sheet Regiondata (hidden)
B1: I denna flik klistras data för regionerna in - detta gäller kolumn C till I. Kolumn C, D, E, F, J, K och L innehåller data för somatisk vård exklusive IVA och kolumn G, H och I innehåller regiondata för IVA. I sista raden summeras alla rader ovan för att ge värden för hela Sverige. Grunden för väntetidsdata behöver uppdateras årligen baserat på vilken data som samlats in från regionerna
G2: Beiga kolumner innehåller formler och BÖR INTE ÄNDRAS när du uppdaterar tabellen.
B4: Region | C4: Vårdplatsbehov planerad vård | D4: Vårdplatsbehov oplanerad vård | E4: Regionernas egna disp vpl | F4: Grund för väntetidsdata | G4: Riktvärde IVA kort sikt utan hänsyn till riktlinjer | H4: Riktvärde IVA kort sikt med hänsyn till riktlinjer | I4: Regionernas disponibla IVA-platser | J4: Riktvärde kort sikt | K4: Gap riktvärde vs disp. vpl | L4: Varav platser baserat på patienter som väntar på vård
B5: Blekinge | C5: 45.24763685 | D5: 248.3727097 | E5: 261.7 | F5: Fördelning av väntande baseras på den data som regionen rapporterat in till Socialstyrelsen efter särskild förfrågan | G5: 6.877557797 | H5: 8.709415721 | I5: 7.952380952 | J5: =D5+C5 -> 293.6203466 | K5: =E5-J5 -> -31.92034659 | L5: =SUMIF(Data!$C$6:$C$149,'Regiondata'!B5,Data!$G$6:$G$149) -> -2.919202378
B6: Dalarna | C6: 88.02395745 | D6: 326.7949855 | E6: 377 | F6: Fördelning av väntande baseras på den data som regionen rapporterat in till Socialstyrelsen efter särskild förfrågan | G6: 11.96242119 | H6: 12.07423287 | I6: 12 | J6: =D6+C6 -> 414.818943 | K6: -37.81894298 | L6: =SUMIF(Data!$C$6:$C$149,'Regiondata'!B6,Data!$G$6:$G$149) -> 4.42683349
B7: Gotland | C7: 20.22102239 | D7: 102.8817101 | E7: 133 | F7: Fördelning av väntande baseras på den data som regionen rapporterat in till Socialstyrelsen efter särskild förfrågan | G7: 2.743589744 | H7: 4 | I7: 5 | J7: 123.1027324 | K7: 9.897267554 | L7: =SUMIF(Data!$C$6:$C$149,'Regiondata'!B7,Data!$G$6:$G$149) -> 0.2748043812
B8: Gävleborg | C8: 42.86880384 | D8: 412.7412729 | E8: 416.5 | F8: Fördelning av väntande baseras på den data som regionen rapporterat in till Socialstyrelsen efter särskild förfrågan | G8: 11.69087852 | H8: 13.44346364 | I8: 13.25 | J8: 455.6100767 | K8: -39.11007675 | L8: =SUMIF(Data!$C$6:$C$149,'Regiondata'!B8,Data!$G$6:$G$149) -> 2.298081957
B9: Halland | C9: 59.3316477 | D9: 381.1448087 | E9: 395 | F9: Fördelning av väntande baseras på den data som regionen rapporterat in till Socialstyrelsen efter särskild förfrågan | G9: 9.620302648 | H9: 9.620302648 | I9: 13 | J9: 440.4764564 | K9: -45.47645645 | L9: =SUMIF(Data!$C$6:$C$149,'Regiondata'!B9,Data!$G$6:$G$149) -> 1.358740024
B10: Jämtland Härjedalen | C10: 23.78445714 | D10: 188.7734812 | E10: 205.01 | F10: Fördelning av väntande baseras på den data som regionen rapporterat in till Socialstyrelsen efter särskild förfrågan | G10: 5.660277427 | H10: 5.660277427 | I10: 6.375 | J10: 212.5579383 | K10: -7.547938335 | L10: =SUMIF(Data!$C$6:$C$149,'Regiondata'!B10,Data!$G$6:$G$149) -> 0
B11: Jönköping | C11: 52.73012651 | D11: 456.416072 | E11: 528 | F11: Fördelning av väntande baseras på den data som regionen rapporterat in till Socialstyrelsen efter särskild förfrågan | G11: 16.82941572 | H11: 16.82941572 | I11: 15.5 | J11: 509.1461985 | K11: 18.85380149 | L11: =SUMIF(Data!$C$6:$C$149,'Regiondata'!B11,Data!$G$6:$G$149) -> 0.1848288354
B12: Kalmar | C12: 104.3685203 | D12: 258.7982642 | E12: 403 | F12: Fördelning av väntande baseras på den data som regionen rapporterat in till Socialstyrelsen efter särskild förfrågan | G12: 9.747835225 | H12: 9.747835225 | I12: 11.71428571 | J12: 363.1667846 | K12: 39.83321545 | L12: =SUMIF(Data!$C$6:$C$149,'Regiondata'!B12,Data!$G$6:$G$149) -> 2.447755303
B13: Kronoberg | C13: 34.81095016 | D13: 244.796657 | E13: 257.7 | F13: Fördelning av väntande baseras på den data som regionen rapporterat in till Socialstyrelsen efter särskild förfrågan | G13: 6.590269021 | H13: 8.366498529 | I13: 7.19047619 | J13: 279.6076072 | K13: -21.90760719 | L13: =SUMIF(Data!$C$6:$C$149,'Regiondata'!B13,Data!$G$6:$G$149) -> 1.642931758
B14: Norrbotten | C14: 35.41482818 | D14: 376.8326905 | E14: 363 | F14: Fördelning av väntande baseras på den data som regionen rapporterat in till Socialstyrelsen efter särskild förfrågan | G14: 15.00038251 | H14: 19.71092896 | I14: 12.75 | J14: 412.2475186 | K14: -49.24751864 | L14: =SUMIF(Data!$C$6:$C$149,'Regiondata'!B14,Data!$G$6:$G$149) -> 7.211118088
B15: Skåne | C15: 405.1941692 | D15: 1872.077917 | E15: 1847.422805 | F15: Fördelning av väntande baseras på den data som regionen rapporterat in till Socialstyrelsen efter särskild förfrågan | G15: 50.61917612 | H15: 52.8957335 | I15: 54.54166667 | J15: 2277.272086 | K15: -429.849281 | L15: =SUMIF(Data!$C$6:$C$149,'Regiondata'!B15,Data!$G$6:$G$149) -> 40.96486232
B16: Stockholm | C16: 1378.751212 | D16: 2809.518901 | E16: 4007 | F16: Fördelning av väntande antas utifrån andel av regionens planerade slutenvård | G16: 80.70183953 | H16: 85.20103668 | I16: 83.58928571 | J16: 4188.270113 | K16: -181.270113 | L16: =SUMIF(Data!$C$6:$C$149,'Regiondata'!B16,Data!$G$6:$G$149) -> 11.18911859
B17: Södermanland | C17: 40.30499255 | D17: 437.195082 | E17: 433.3 | F17: Fördelning av väntande baseras på den data som regionen rapporterat in till Socialstyrelsen efter särskild förfrågan | G17: 11.82295082 | H17: 11.82295082 | I17: 13.5 | J17: 477.5000745 | K17: -44.20007451 | L17: =SUMIF(Data!$C$6:$C$149,'Regiondata'!B17,Data!$G$6:$G$149) -> 0.5625996778
B18: Uppsala | C18: 259.2395886 | D18: 475.284378 | E18: 619 | F18: Fördelning av väntande baseras på den data som regionen rapporterat in till Socialstyrelsen efter särskild förfrågan | G18: 34.62168979 | H18: 34.99491383 | I18: 19.94642857 | J18: 734.5239666 | K18: -115.5239666 | L18: =SUMIF(Data!$C$6:$C$149,'Regiondata'!B18,Data!$G$6:$G$149) -> 26.48108987
B19: Värmland | C19: 46.28137202 | D19: 465.3090646 | E19: 428 | F19: Fördelning av väntande baseras på den data som regionen rapporterat in till Socialstyrelsen efter särskild förfrågan | G19: 13.56733922 | H19: 15.93979823 | I19: 13.5 | J19: 511.5904366 | K19: -83.59043663 | L19: =SUMIF(Data!$C$6:$C$149,'Regiondata'!B19,Data!$G$6:$G$149) -> 9.976942917
B20: Västerbotten | C20: 143.2988021 | D20: 437.5855995 | E20: 454 | F20: Fördelning av väntande baseras på den data som regionen rapporterat in till Socialstyrelsen efter särskild förfrågan | G20: 23.35271122 | H20: 25.09751997 | I20: 23.21428571 | J20: 580.8844015 | K20: -126.8844015 | L20: =SUMIF(Data!$C$6:$C$149,'Regiondata'!B20,Data!$G$6:$G$149) -> 19.32854034
B21: Västernorrland | C21: 21.96702286 | D21: 396.8242366 | E21: 343.99 | F21: Fördelning av väntande baseras på den data som regionen rapporterat in till Socialstyrelsen efter särskild förfrågan | G21: 10.33588062 | H21: 14.14943253 | I21: 11.25 | J21: 418.7912594 | K21: -74.80125944 | L21: =SUMIF(Data!$C$6:$C$149,'Regiondata'!B21,Data!$G$6:$G$149) -> 2.491105685
B22: Västmanland | C22: 93.06835107 | D22: 366.0199293 | E22: 411 | F22: Fördelning av väntande baseras på den data som regionen rapporterat in till Socialstyrelsen efter särskild förfrågan | G22: 7.624968474 | H22: 7.624968474 | I22: 7.375 | J22: 459.0882803 | K22: -48.08828035 | L22: =SUMIF(Data!$C$6:$C$149,'Regiondata'!B22,Data!$G$6:$G$149) -> 12.0179628
B23: Västra Götaland | C23: 483.4126641 | D23: 2233.543973 | E23: 2209 | F23: Fördelning av väntande baseras på den data som regionen rapporterat in till Socialstyrelsen efter särskild förfrågan | G23: 89.74647173 | H23: 92.76040616 | I23: 79.03571429 | J23: 2716.956637 | K23: -507.9566371 | L23: =SUMIF(Data!$C$6:$C$149,'Regiondata'!B23,Data!$G$6:$G$149) -> 13.86193072
B24: Örebro | C24: 160.9581161 | D24: 346.824558 | E24: 487 | F24: Fördelning av väntande baseras på den data som regionen rapporterat in till Socialstyrelsen efter särskild förfrågan | G24: 18.31356452 | H24: 20.75405633 | I24: 18.89285714 | J24: 507.7826741 | K24: -20.7826741 | L24: =SUMIF(Data!$C$6:$C$149,'Regiondata'!B24,Data!$G$6:$G$149) -> 15.62081381
B25: Östergötland | C25: 121.6561821 | D25: 583.4452588 | E25: 638 | F25: Fördelning av väntande baseras på den data som regionen rapporterat in till Socialstyrelsen efter särskild förfrågan | G25: 27.84580496 | H25: 29.83383775 | I25: 25.92857143 | J25: 705.1014409 | K25: -67.10144088 | L25: =SUMIF(Data!$C$6:$C$149,'Regiondata'!B25,Data!$G$6:$G$149) -> 15.57303573
B26: Sverige | C26: 3660.934424 | D26: 13421.18155 | E26: 15217.62281 | F26: - | G26: 465.2753268 | H26: 499.237025 | I26: 455.5059524 | J26: =SUM('Regiondata'!$J$5:$J$25) -> 17082.11597 | K26: =SUM('Regiondata'!$K$5:$K$25) -> -1864.493168 | L26: =SUM('Regiondata'!$L$5:$L$25) -> 184.9938939
